[Event "Bangabandhu Premier Div League 2023-24"]
[Site "Dhaka"]
[Date "2024.02.05"]
[Round "5.7"]
[White "Mihir Lal, Das"]
[Black "Mayank Chakraborty"]
[Result "1/2-1/2"]
[ECO "D02"]
[WhiteElo "1936"]
[BlackElo "2409"]
[Annotator "RC"]
[PlyCount "134"]
[EventDate "2024.02.01"]
[EventCountry "BAN"]
[SourceTitle "playchess.com"]
[Source "ChessBase"]
[SourceQuality "1"]
[TimeControl "40/5400+30:1800+30"]

1. Nf3 {[%emt 1:31:00]} d5 {[%emt 0:00:37]} 2. g3 {[%emt 0:00:30]} c6 {[%emt 0:02:18]} 3. Bg2 {[%emt 0:00:00]} Bg4 {[%emt 1:29:05]} 4. d4 {[%emt 0:00:00]} Nd7 {[%emt 0:00:00]} 5. O-O {[%emt 0:01:30]} e6 {[%emt 0:01:00]} 6. Nbd2 {[%emt 0:00:30]} Ngf6 {[%emt 0:00:00]} 7. Re1 {[%emt 0:00:30]} c5 {[%emt 0:01:00]} 8. c4 {[%emt 0:00:30]} cxd4 {[%emt 0:00:30]} 9. cxd5 {[%emt 0:00:30]} exd5 {[%emt 0:00:00]} 10. Nxd4 {[%emt 0:00:30]} Bc5 {[%emt 0:00:00]} 11. N2b3 {[%emt 0:00:30]} Bb6 {[%emt 0:01:30]} 12. Bf4 {[%emt 0:00:30]} O-O {[%emt 0:00:30]} 13. Qd3 {[%emt 0:00:30]} Re8 {[%emt 0:00:30]} 14. a4 {[%emt 0:00:30]} a6 {[%emt 0:00:30]} 15. a5 {[%emt 0:00:00]} Bc7 {[%emt 0:00:00]} 16. Bxc7 {[%emt 0:00:00]} Qxc7 {[%emt 0:00:00]} 17. Rac1 {[%emt 0:01:30]} Qd6 {[%emt 0:01:30]} 18. h3 {[%emt 0:00:30]} Ne5 {[%emt 0:00:30]} 19. Qc3 {[%emt 0:00:30]} Bd7 {[%emt 0:00:30]} 20. Nc5 {[%emt 0:00:30]} Bc6 {[%emt 0:00:30]} 21. Red1 {[%emt 0:00:30]} h5 {[%emt 0:00:30]} 22. e4 {[%emt 0:00:30]} dxe4 {[%emt 0:00:30]} 23. Nxc6 {[%emt 0:00:00]} Qxc6 {[%emt 0:00:30]} 24. Nxe4 {[%emt 0:00:00]} Nxe4 {[%emt 0:00:00]} 25. Qd4 {[%emt 0:01:30]} Nxg3 {[%emt 0:01:00]} 26. Bxc6 {[%emt 0:00:30]} Ne2+ {[%emt 0:00:30]} 27. Kf1 {[%emt 0:00:30]} Nxd4 {[%emt 0:00:00]} 28. Bxe8 {[%emt 0:00:30]} Nb3 {[%emt 0:01:00]} 29. Rc3 {[%emt 0:00:00]} Nxa5 {[%emt 0:00:30]} 30. Ba4 {[%emt 0:01:00]} b5 {[%emt 0:00:30]} 31. Bc2 {[%emt 0:00:30]} g6 {[%emt 0:00:00]} 32. b3 {[%emt 0:00:00]} Re8 {[%emt 0:00:00]} 33. f4 {[%emt 0:00:00]} Nec6 {[%emt 0:00:00]} 34. Ra1 {[%emt 0:00:00]} Re6 {[%emt 0:00:00]} 35. b4 {[%emt 0:00:00]} Nc4 {[%emt 0:00:00]} 36. Rxa6 {[%emt 0:00:00]} Kg7 {[%emt 0:00:00]} 37. Bb3 {[%emt 0:00:00]} Nd2+ {[%emt 0:00:10]} 38. Kg1 {[%emt 0:00:24]} Nxb3 {[%emt 0:01:00]} 39. Raxc6 {[%emt 0:00:03]} Nd4 {[%emt 0:01:08]} 40. Rxe6 {[%emt 0:01:29]} Nxe6 {[%emt 0:00:03]} 41. Rf3 {[%emt 0:04:18]} Kf6 {[%emt 0:00:06]} 42. Kf2 {[%emt 0:00:16]} Kf5 {[%emt 0:01:29]} 43. Ke3 {[%emt 0:03:20]} Nc7 {[%emt 0:00:14]} 44. Kd4 {[%emt 0:01:19]} Ne6+ {[%emt 0:02:42]} 45. Kd5 {[%emt 0:03:30]} h4 {[%emt 0:02:22]} 46. Rf1 {[%emt 0:00:33]} Nxf4+ {[%emt 0:04:24]} 47. Kc6 {[%emt 0:00:16]} g5 {[%emt 0:03:04]} 48. Kxb5 {[%emt 0:00:15]} g4 {[%emt 0:00:10]} 49. hxg4+ {[%emt 0:00:25]} Kxg4 {[%emt 0:00:04]} 50. Kc4 {[%emt 0:04:57]} h3 {[%emt 0:00:35]} 51. b5 {[%emt 0:00:45]} Ne6 {[%emt 0:00:31]} 52. Rxf7 {[%emt 0:03:28]} h2 {[%emt 0:00:09]} 53. Rh7 {[%emt 0:00:43]} Kg3 {[%emt 0:00:01]} 54. b6 {[%emt 0:01:44]} Nd8 {[%emt 0:00:11]} 55. Kb5 {[%emt 0:02:53]} Kg2 {[%emt 0:00:09]} 56. Ka6 {[%emt 0:01:30]} h1=Q {[%emt 0:00:14]} 57. Rxh1 {[%emt 0:00:26]} Kxh1 {[%emt 0:00:03]} 58. Ka7 {[%emt 0:00:10]} Kg2 {[%emt 0:00:20]} 59. Kb8 {[%emt 0:00:03]} Ne6 {[%emt 0:00:35]} 60. Kb7 {[%emt 0:00:53]} Kf3 {[%emt 0:01:02]} 61. Kc6 {[%emt 0:00:17]} Ke4 {[%emt 0:00:40]} 62. Kd6 {[%emt 0:00:47]} Nd8 {[%emt 0:00:05]} 63. Kc7 {[%emt 0:00:47]} Ne6+ {[%emt 0:00:07]} 64. Kd6 {[%emt 0:00:24]} Nd8 {[%emt 0:00:04]} 65. Kc7 {[%emt 0:00:20]} Ne6+ {[%emt 0:00:04]} 66. Kc8 {[%emt 0:00:21]} Nc5 {[%emt 0:00:05]} 67. b7 {[%emt 0:00:11]} Nxb7 {[%emt 0:00:03]} 1/2-1/2

[Event "Bangabandhu Premier Div League 2023-24"]
[Site "Dhaka"]
[Date "2024.02.05"]
[Round "5.7"]
[White "Diya Chowdhury"]
[Black "Sajidul, Haque"]
[Result "1/2-1/2"]
[ECO "B13"]
[WhiteElo "1881"]
[BlackElo "1922"]
[Annotator "RC"]
[PlyCount "157"]
[EventDate "2024.02.01"]
[EventCountry "BAN"]
[SourceTitle "playchess.com"]
[Source "ChessBase"]
[SourceQuality "1"]
[TimeControl "40/5400+30:1800+30"]

1. e4 {[%emt 0:00:09]} c6 {[%emt 0:00:05]} 2. d4 {[%emt 0:00:16]} d5 {[%emt 0:00:07]} 3. exd5 {[%emt 0:00:08]} cxd5 {[%emt 0:00:09]} 4. c4 {[%emt 0:00:28]} Nf6 {[%emt 0:00:06]} 5. Nc3 {[%emt 0:00:12]} Nc6 {[%emt 0:00:07]} 6. Bg5 {[%emt 0:00:35]} dxc4 {[%emt 0:00:09]} 7. d5 {[%emt 0:00:09]} Ne5 {[%emt 0:00:04]} 8. Qd4 {[%emt 0:00:11]} h6 {[%emt 0:00:06]} 9. Bf4 {[%emt 0:00:08]} Ng6 {[%emt 0:00:08]} 10. Bxc4 {[%emt 0:01:27]} Nxf4 {[%emt 0:00:07]} 11. Qxf4 {[%emt 0:00:08]} g5 {[%emt 0:00:04]} 12. Qe5 {[%emt 0:01:58]} Bg7 {[%emt 0:01:54]} 13. Nge2 {[%emt 0:00:25]} O-O {[%emt 0:00:57]} 14. h4 {[%emt 0:01:50]} Qd6 {[%emt 0:07:46]} 15. Qxd6 {[%emt 0:13:12]} exd6 {[%emt 0:00:03]} 16. hxg5 {[%emt 0:00:31]} hxg5 {[%emt 0:00:02]} 17. O-O-O {[%emt 0:01:34]} Ng4 {[%emt 0:01:15]} 18. Rhf1 {[%emt 0:05:38]} Nh2 {[%emt 0:08:46]} 19. Rh1 {[%emt 0:00:12]} Ng4 {[%emt 0:00:08]} 20. Rhf1 {[%emt 0:01:11]} Bd7 {[%emt 0:21:08]} 21. Kb1 {[%emt 0:03:12]} Rac8 {[%emt 0:08:40]} 22. Bb5 {[%emt 0:07:38]} Rfd8 {[%emt 0:06:16]} 23. Bxd7 {[%emt 0:01:54]} Rxd7 {[%emt 0:00:04]} 24. Ne4 {[%emt 0:02:01]} Re8 {[%emt 0:04:30]} 25. N2c3 {[%emt 0:02:34]} Re5 {[%emt 0:10:43]} 26. Rd3 {[%emt 0:08:23]} Nf6 {[%emt 0:07:30]} 27. Nxf6+ {[%emt 0:06:15]} Bxf6 {[%emt 0:00:04]} 28. f3 {[%emt 0:02:01]} Bd8 {[%emt 0:02:18]} 29. g4 {[%emt 0:04:29]} f5 {[%emt 0:09:19]} 30. f4 {[%emt 0:03:11]} gxf4 {[%emt 0:01:56]} 31. Rxf4 {[%emt 0:00:06]} fxg4 {[%emt 0:04:34]} 32. Rxg4+ {[%emt 0:00:17]} Kf8 {[%emt 0:03:09]} 33. Rf4+ {[%emt 0:03:22]} Ke8 {[%emt 0:04:46]} 34. Ne4 {[%emt 0:03:50]} Be7 {[%emt 0:00:30]} 35. Nf6+ {[%emt 0:07:48]} Bxf6 {[%emt 0:00:00]} 36. Rxf6 {[%emt 0:00:04]} Rc7 {[%emt 0:01:00]} 37. Rd1 {[%emt 0:01:39]} Kd7 {[%emt 0:00:00]} 38. Rf7+ {[%emt 0:20:24]} Re7 {[%emt 0:01:00]} 39. Rf2 {[%emt 0:00:00]} Rc5 {[%emt 0:00:30]} 40. a3 {[%emt 0:00:00]} Re5 {[%emt 0:00:30]} 41. Rf7+ {[%emt 0:17:29]} Re7 {[%emt 0:30:30]} 42. Rf2 {[%emt 0:14:31]} a5 {[%emt 0:00:30]} 43. Ka2 {[%emt 0:00:30]} b5 {[%emt 0:00:30]} 44. Rh2 {[%emt 0:00:00]} Kc7 {[%emt 0:00:00]} 45. Rg2 {[%emt 0:00:00]} Re5 {[%emt 0:00:00]} 46. Rgd2 {[%emt 0:01:30]} Kb6 {[%emt 0:00:00]} 47. Kb1 {[%emt 0:00:00]} Rc4 {[%emt 0:00:00]} 48. Rh2 {[%emt 0:01:00]} Rc5 {[%emt 0:00:00]} 49. Rh6 {[%emt 0:00:00]} Kc7 {[%emt 0:00:00]} 50. Rh7+ {[%emt 0:00:00]} Kd8 {[%emt 0:03:30]} 51. Rg1 {[%emt 0:00:00]} Re7 {[%emt 0:00:00]} 52. Rh5 {[%emt 0:00:00]} a4 {[%emt 0:00:00]} 53. Rd1 {[%emt 0:00:00]} Kc7 {[%emt 0:00:00]} 54. Rh2 {[%emt 0:00:00]} Kb6 {[%emt 0:00:00]} 55. Rh6 {[%emt 0:00:00]} Rd7 {[%emt 0:00:00]} 56. Rh8 {[%emt 0:00:00]} Kc7 {[%emt 0:00:00]} 57. Rh4 {[%emt 0:00:00]} Re7 {[%emt 0:00:00]} 58. Rh6 {[%emt 0:00:00]} Rc4 {[%emt 0:00:00]} 59. Rg6 {[%emt 0:05:30]} Rd7 {[%emt 0:04:30]} 60. Rg8 {[%emt 0:00:00]} Rh7 {[%emt 0:00:00]} 61. Rg6 {[%emt 0:00:00]} Kd7 {[%emt 0:00:00]} 62. Rg8 {[%emt 0:00:00]} Rc8 {[%emt 0:00:00]} 63. Rg2 {[%emt 0:00:00]} Rf8 {[%emt 0:00:00]} 64. Rg4 {[%emt 0:00:00]} Rc8 {[%emt 0:00:00]} 65. Rf1 {[%emt 0:00:00]} Rc5 {[%emt 0:00:00]} 66. Rd1 {[%emt 0:00:00]} Rf7 {[%emt 0:00:46]} 67. Rg8 {[%emt 0:00:00]} Rf5 {[%emt 0:00:57]} 68. Rg7+ {[%emt 0:04:30]} Ke8 {[%emt 0:02:13]} 69. Rg6 {[%emt 0:00:00]} Kd7 {[%emt 0:00:29]} 70. Rg7+ {[%emt 0:00:00]} Ke8 {[%emt 0:00:26]} 71. Rg6 {[%emt 0:00:00]} Rcxd5 {[%emt 0:00:36]} 72. Rxd6 {[%emt 0:02:00]} Rxd1+ {[%emt 0:00:18]} 73. Rxd1 {[%emt 0:00:00]} Rc5 {[%emt 0:01:15]} 74. Rc1 {[%emt 0:00:00]} Rxc1+ {[%emt 0:00:00]} 75. Kxc1 {[%emt 0:00:00]} Kd7 {[%emt 0:00:00]} 76. Kd2 {[%emt 0:00:00]} Kd6 {[%emt 0:00:00]} 77. Kc2 {[%emt 0:00:00]} Kc6 {[%emt 0:00:00]} 78. Kd2 {[%emt 0:00:00]} Kd6 {[%emt 0:00:00]} 79. Kd3 {[%emt 0:03:30]} 1/2-1/2

[Event "Bangabandhu Premier Div League 2023-24"]
[Site "Dhaka"]
[Date "2024.02.05"]
[Round "5.8"]
[White "Subrota, Biswas"]
[Black "Abdullah Al, Raison"]
[Result "1-0"]
[ECO "B48"]
[WhiteElo "2223"]
[BlackElo "1839"]
[Annotator "TA"]
[PlyCount "59"]
[EventDate "2024.02.01"]
[EventCountry "BAN"]
[SourceTitle "playchess.com"]
[Source "ChessBase"]
[SourceQuality "1"]
[TimeControl "40/5400+30:1800+30"]

{[%evp 11,59,27,45,10,0,1,17,-31,25,37,70,50,71,19,63,83,81,43,76,75,100,87,89,83,89,90,95,92,155,132,175,91,275,276,509,276,343,277,273,282,260,269,731,737,704,708,701,694,1233,1209]} 1. e4 {[%emt 1:31:00]} c5 {[%emt 0:06:14]} 2. Nf3 {[%emt 0:00:00]} e6 {[%emt 0:03:15]} 3. d4 {[%emt 0:00:00]} cxd4 {[%emt 0:00:05]} 4. Nxd4 {[%emt 0:00:00]} Nc6 {[%emt 0:00:06]} 5. Nc3 {[%emt 0:00:00]} Qc7 {[%emt 0:00:02]} 6. Be3 {[%emt 0:00:00]} a6 {[%emt 0:00:03]} 7. g4 {[%emt 0:03:00]} b5 {[%emt 1:24:15]} 8. Nxc6 {[%emt 0:00:00]} Qxc6 {[%emt 0:00:00]} 9. Qd2 {[%emt 0:01:00]} (9. Bg2 $11) 9... Nf6 {[%emt 0:00:00]} (9... b4 $15 10. Ne2 Qxe4) 10. f3 $11 {[%emt 0:00:30][%cal Bf2f3,Bf3f4][%mdl 32]} d6 {[%emt 0:00:00]} 11. O-O-O {[%emt 0:00:00]} Bb7 {[%emt 0:00:00]} 12. Rg1 {[%emt 0:00:00]} (12. a3 $16) 12... Rc8 {[%emt 0:02:30]} 13. a3 {[%emt 0:01:30]} Nd7 {[%emt 0:00:30][%cal Bf6d7,Bd7b6,Bb6c4][%mdl 32]} 14. f4 {[%emt 0:00:00]} Nb6 {[%emt 0:00:00]} 15. Kb1 {[%emt 0:01:00]} Nc4 {[%emt 0:00:00]} 16. Bxc4 {[%emt 0:00:00]} Qxc4 {[%emt 0:00:00]} 17. Bd4 {[%emt 0:00:00]} a5 {[%emt 0:00:00]} 18. b3 {[%emt 0:01:30]} Qc6 {[%emt 0:00:00]} 19. Rge1 {[%emt 0:00:30]} Rg8 {[%emt 0:00:00] [#]} ({Black should play} 19... Be7) 20. Nd5 $1 $36 {[%emt 0:00:00][%mdl 2560] White has strong initiative. White is more active.} Be7 {[%emt 0:00:00] [#]} (20... Qa6 21. Nb6) 21. Re3 {[%emt 0:00:00]} exd5 $2 {[%emt 0:00:00] Black cannot hold the game after this.} (21... Bd8 $16) 22. exd5 $18 {[%emt 0:00:00]} Qxd5 {[%emt 0:00:00]} (22... Qxc2+ {was called for.} 23. Qxc2 Rxc2) 23. Qe1 {[%emt 0:00:00]} Rc7 {[%emt 0:05:00]} 24. Bb6 {[%emt 0:00:00]} ({Not} 24. Qxa5 Rd7 25. Qc3 h6 $17) 24... Qc6 {[%emt 0:00:00]} 25. Bxc7 {[%emt 0:00:00]} Qxc7 {[%emt 0:00:00] [#]} 26. Qh4 $1 {[%emt 0:03:30]} Kf8 $2 {[%emt 0:00:00] [#]} (26... Kd8 27. Qxh7 Re8 28. Qxg7 a4) 27. Rde1 $1 {[%emt 0:00:30][%cal Re3e7] White is clearly winning.} f6 {[%emt 0:00:00]} 28. Qxh7 {[%emt 0:00:00]} Bd5 {[%emt 0:00:00]} 29. Qd3 {[%emt 0:00:00]} Bc6 {[%emt 0:00:00]} 30. Qe2 {[%emt 0:00:00] Weighted Error Value: White=0.33/Black=0.59.  Loses game:     	---       	Black=1      Mistake:       	White=3     	Black=4      Inaccurate:     	White=2     	Black=4      OK:         	White=4     	Black=5      Best:        	White=2     	Black=1      Strong:       	White=2     	---} 1-0

[Event "Bangabandhu Premier Div League 2023-24"]
[Site "Dhaka"]
[Date "2024.02.05"]
[Round "5.9"]
[White "Rathanvel, V S"]
[Black "Mohammad Minhaz Uddin"]
[Result "1-0"]
[ECO "C43"]
[WhiteElo "2474"]
[BlackElo "2224"]
[Annotator "TA"]
[PlyCount "65"]
[EventDate "2024.02.01"]
[EventCountry "BAN"]
[SourceTitle "playchess.com"]
[Source "ChessBase"]
[SourceQuality "1"]
[TimeControl "40/5400+30:1800+30"]

{[%evp 14,65,0,9,0,0,6,10,35,20,27,36,36,0,55,62,47,48,80,79,194,178,170,120,305,54,525,706,706,699,698,698,814,821,817,807,788,641,972,982,976,958,951,845,842,823,856,856,856,856,845,800,797,796]} 1. e4 {[%emt 0:00:02]} e5 {[%emt 0:01:06]} 2. Nf3 {[%emt 0:00:10]} Nf6 {[%emt 0:00:08]} 3. d4 {[%emt 0:00:13]} Nxe4 {[%emt 0:00:11]} 4. Bd3 {[%emt 1:32:05]} d5 {[%emt 0:03:47]} 5. Nxe5 {[%emt 0:00:00]} Nd7 {[%emt 0:00:02]} 6. Nc3 {[%emt 0:00:00]} Nxc3 {[%emt 0:04:08]} 7. bxc3 {[%emt 0:00:00]} Nxe5 {[%emt 0:00:09]} 8. dxe5 {[%emt 0:00:00]} Bc5 {[%emt 0:00:26]} 9. O-O {[%emt 0:00:00]} Be6 {[%emt 0:00:08]} 10. Rb1 {[%emt 0:00:00]} Bb6 {[%emt 1:25:25] The position is equal.} 11. Qf3 {[%emt 0:00:00]} Qd7 {[%emt 0:00:00]} (11... O-O {is interesting.} 12. Qh5 g6 13. Qh6 f5) 12. Rb4 {[%emt 0:04:00]} O-O-O {[%emt 0:01:00]} 13. a4 {[%emt 0:00:00]} c5 {[%emt 0:00:00]} (13... Ba5 $11) 14. Rb5 $1 $14 {[%emt 0:00:00]} c4 {[%emt 0:00:00]} 15. Be2 {[%emt 0:00:00]} Qc6 {[%emt 0:01:30]} 16. Be3 {[%emt 0:02:00]} d4 {[%emt 0:00:30]} (16... Bxe3 $16 17. Qxe3 Kb8) 17. Bxd4 $18 {[%emt 0:00:00]} Bxd4 {[%emt 0:00:00]} 18. cxd4 {[%emt 0:00:00] [#] Rc5 is the strong threat.} Rxd4 $2 {[%emt 0:00:00]} (18... Qxf3 $16 19. Bxf3 Rxd4 20. Rxb7 (20. Bxb7+ Kc7 $16) 20... Rd7) 19. Rfb1 $2 {[%emt 0:00:00]} (19. Qe3 $18 Qe4 20. Qc3) 19... Bd5 $2 {[%emt 0:01:30][%mdl 8192]} (19... Qxf3 $14 20. Bxf3 b6) 20. Qe3 {[%emt 0:00:00] White is clearly winning.} Re4 {[%emt 0:00:00] [#]} 21. Qxa7 $1 {[%emt 0:00:00] aiming for Rc5.} Rxe2 {[%emt 0:00:00]} 22. Rc5 {[%emt 0:00:00]} Kd7 {[%emt 0:00:16]} 23. Rxc6 {[%emt 0:00:00]} Bxc6 {[%emt 0:01:44]} 24. Qd4+ {[%emt 0:04:00]} Kc7 {[%emt 0:00:00][%cal Bd7c7,Bc7c8,Bc8b8,Bb8b7,Bb7b6][%mdl 32]} 25. a5 {[%emt 0:00:00][%cal Ba4a5,Ba5a6][%mdl 32]} Rd8 {[%emt 0:00:25]} 26. Qb6+ {[%emt 0:00:00]} Kc8 {[%emt 0:00:27]} 27. a6 {[%emt 0:00:00][%cal Ra6b7]} Red2 {[%emt 0:00:04]} 28. axb7+ {[%emt 0:00:00]} Kb8 {[%emt 0:00:02]} 29. h4 {[%emt 0:00:00]} (29. Qxc6 $2 {leads to mate.} Rd1+ 30. Rxd1 Rxd1#) 29... Rd1+ {[%emt 0:00:04]} 30. Kh2 {[%emt 0:00:00]} Rxb1 {[%emt 0:01:17]} 31. Qxd8+ {[%emt 0:00:00]} Kxb7 {[%emt 0:00:10]} 32. Qe7+ {[%emt 0:00:00]} Kb6 {[%emt 0:01:18]} 33. Qxf7 {[%emt 0:00:00] Weighted Error Value: White=0.47/Black=0.65.  Loses game:     	---       	Black=2      Missed win:     	White=1     	---        Mistake:       	---       	Black=2      Inaccurate:     	White=1     	Black=1      OK:         	White=6     	Black=3      Best:        	White=1     	---        Strong:       	White=1     	---} 1-0

[Event "Bangabandhu Premier Div League 2023-24"]
[Site "Dhaka"]
[Date "2024.02.05"]
[Round "5.10"]
[White "Ahmed, Sheikh Nasir"]
[Black "Mohammed Abdul, Malek"]
[Result "1/2-1/2"]
[ECO "A25"]
[WhiteElo "2182"]
[BlackElo "2047"]
[Annotator "TA"]
[PlyCount "108"]
[EventDate "2024.02.01"]
[EventCountry "BAN"]
[SourceTitle "playchess.com"]
[Source "ChessBase"]
[SourceQuality "1"]
[TimeControl "40/5400+30:1800+30"]

{[%evp 16,108,17,20,27,26,21,15,17,24,26,26,65,61,41,-12,7,5,23,31,66,62,75,69,68,55,88,29,36,33,60,0,0,0,0,0,0,0,25,31,23,0,0,0,0,0,0,0,0,-36,0,-24,0,0,0,-85,-66,-78,-56,-183,-41,-36,-37,-54,-50,-62,-47,-68,-62,-57,-54,-61,-61,-82,-10,-69,-60,-60,-60,-66,-8,-8,-8,-8,-8,-8,-8,-8,-8,-8,-8,-8,0,-8,0]} 1. c4 {[%emt 0:00:07]} e5 {[%emt 0:01:12]} 2. g3 {[%emt 0:00:17]} Bc5 {[%emt 0:00:14]} 3. Bg2 {[%emt 0:00:22]} d6 {[%emt 0:00:03]} 4. e3 {[%emt 0:00:28]} Nc6 {[%emt 0:00:54]} 5. Nc3 {[%emt 0:00:22]} a6 {[%emt 0:00:41]} 6. Nge2 {[%emt 0:00:18] A25: English Opening vs King's Indian with ...Nc6 but without early d3.} h5 {[%emt 0:01:14]} 7. d4 {[%emt 0:04:13]} Ba7 {[%emt 0:01:12]} 8. h3 {[%emt 1:28:23]} h4 {[%emt 0:05:10]} 9. g4 {[%emt 0:00:00]} f5 {[%emt 0:00:09]} 10. g5 {[%emt 0:01:00]} Qxg5 {[%emt 0:13:16]} 11. Rg1 {[%emt 0:00:00]} Qe7 {[%emt 0:00:47]} 12. Nd5 {[%emt 0:00:00]} Qf7 {[%emt 0:00:25]} 13. Qa4 {[%emt 0:00:00]} Kd8 $146 {[%emt 0:05:21]} ({Predecessor:} 13... Kf8 14. Bd2 Be6 15. O-O-O Rc8 16. dxe5 Nxe5 17. Nef4 Bd7 18. Qb3 b5 19. cxb5 Bxb5 {1-0 Vachier Lagrave,M (2770)-Bartel,M (2639) PRO League Stage rapid 2020 (1)}) 14. dxe5 {[%emt 0:00:00]} Nxe5 {[%emt 0:01:08]} 15. Qb3 {[%emt 0:00:00]} (15. Bd2 $1 $14) 15... c6 {[%emt 0:02:22]} 16. Nb6 {[%emt 0:00:00]} Bxb6 {[%emt 0:00:11]} 17. Qxb6+ {[%emt 0:00:00]} Qc7 {[%emt 0:00:04]} 18. Qd4 $1 {[%emt 0:04:00]} Qa5+ {[%emt 0:06:52]} 19. Bd2 {[%emt 0:00:30]} (19. Kf1 {simplifies} Qc5 20. Qxc5 dxc5 21. b3) 19... Qc5 {[%emt 0:58:45]} 20. Bc3 {[%emt 0:00:00]} Qxd4 {[%emt 0:00:00]} 21. Bxd4 {[%emt 0:01:00]} (21. exd4 $16 Nxc4 22. b3) 21... Nxc4 {[%emt 0:00:00]} 22. O-O-O {[%emt 0:00:00]} (22. Bxg7 $5 Rh7 $8 23. Bc3 $11) 22... Kc7 {[%emt 0:01:30]} 23. Bxg7 {[%emt 0:00:00]} (23. Bxc6 $14 Kxc6 24. Rxg7) 23... Rh7 $11 {[%emt 0:00:00]} 24. Bh1 {[%emt 0:00:00]} Bd7 {[%emt 0:00:00]} 25. Bc3 {[%emt 0:02:00]} Ne7 {[%emt 0:01:30]} 26. Nf4 {[%emt 0:00:30]} Rg8 {[%emt 0:00:30]} 27. Rxg8 {[%emt 0:00:00]} Nxg8 {[%emt 0:00:00]} 28. Rg1 {[%emt 0:00:00]} Ne7 {[%emt 0:01:00]} 29. Bf6 {[%emt 0:01:30]} Ne5 {[%emt 0:00:30]} 30. Kd2 {[%emt 0:00:00]} b5 {[%emt 0:00:00]} 31. Ke2 {[%emt 0:00:00]} a5 {[%emt 0:01:00]} 32. Rg5 {[%emt 0:01:30]} a4 {[%emt 0:00:00]} 33. a3 {[%emt 0:00:30]} Nc8 {[%emt 0:00:00]} 34. Rg1 {[%emt 0:00:00]} Nb6 {[%emt 0:00:00]} 35. Ng6 {[%emt 0:00:00]} (35. Rg8 $2 Nbc4 36. Nd3 Nxd3 37. Kxd3 f4 $19) (35. Kd1 $11) 35... Nxg6 {[%emt 0:00:00]} (35... Rh6 $6 36. Bxe5 dxe5 37. Nxe5 $15) 36. Rxg6 {[%emt 0:00:00]} Nc4 {[%emt 0:00:00]} (36... f4 $5 37. Be4 fxe3 (37... Bxh3 38. Bd8+ Kxd8 39. Rg8+ Kd7 40. Bxh7 $17) 38. Bd8+ Kxd8 39. Rg8+ Ke7 40. Bxh7 exf2 (40... Bxh3 41. Kxe3 Nc4+ 42. Kf4 $17) 41. Kxf2 Bxh3 42. Rg7+ Ke8 $17) 37. Kd1 {[%emt 0:00:53]} (37. Bg2 $1 $15) 37... d5 {[%emt 0:00:00]} (37... f4 $1 $19 38. Bg2 fxe3 39. fxe3 Nxe3+ 40. Kd2 Bf5 (40... Nxg2 $2 41. Rxg2 Rh6 42. Bg5 $19)) 38. Bg2 $15 {[%emt 0:00:29]} Be6 {[%emt 0:00:00]} 39. Kc1 {[%emt 0:00:17]} Kd7 {[%emt 0:00:00]} 40. Bf1 {[%emt 0:01:05]} Nd6 {[%emt 0:00:00]} 41. f3 {[%emt 0:03:10]} Bf7 {[%emt 0:00:00]} 42. Rg5 {[%emt 0:02:08]} Ke6 {[%emt 0:00:00]} 43. Bd4 {[%emt 0:00:35]} Rh5 {[%emt 0:00:00]} 44. Rg7 {[%emt 0:06:07]} Rh6 {[%emt 0:00:00]} ({Better is} 44... f4 $17 {...Nf5 is the strong threat.} 45. Rg4 (45. exf4 $2 {perishes.} Nf5 $19) 45... fxe3 46. Bxe3 Nc4) 45. Bc3 {[%emt 0:00:36]} (45. Bd3 $11) 45... Rg6 {[%emt 0:00:00]} 46. Rxg6+ {[%emt 0:00:13]} Bxg6 {[%emt 0:00:00]} 47. Be1 {[%emt 0:00:02]} Bh5 {[%emt 0:00:00]} ({Black should play} 47... f4 $1 $15 48. exf4 Nf5) 48. f4 $11 {[%emt 0:01:16]} Nc4 {[%emt 0:00:08]} 49. Bxc4 {[%emt 0:00:31]} dxc4 {[%emt 0:00:20]} 50. Bxh4 {[%emt 0:00:06]} c5 {[%emt 0:01:26]} 51. Be1 {[%emt 0:01:07]} Kd5 {[%emt 0:00:09]} 52. Bc3 {[%emt 0:00:14]} Ke4 {[%emt 0:00:33]} 53. Kd2 {[%emt 0:00:02]} Bf3 {[%emt 0:01:29]} 54. Ba5 {[%emt 0:00:16]} Bh5 {[%emt 0:01:04]} 1/2-1/2